[Event "*** SCC Grand Prix: Titled Tuesday Blitz"]
[Site "Chess.com"]
[Date "2020.09.08"]
[Round "7"]
[White "artichaud"]
[Black "Mikhail_Golubev"]
[Result "0-1"]
[WhiteElo "2220"]
[BlackElo "2574"]
[TimeControl "180+1"]
[EndTime "11:19:14 PDT"]
[Termination "Mikhail_Golubev won on time"]

1. e4 {[%clk 0:03:00]} 1... c5 {[%clk 0:02:59.5]} 2. Nf3 {[%clk 0:02:59.8]} 2...
d6 {[%clk 0:02:59.6]} 3. d4 {[%clk 0:02:59.5]} 3... cxd4 {[%clk 0:02:59.7]} 4.
Nxd4 {[%clk 0:02:59.6]} 4... Nf6 {[%clk 0:03:00.2]} 5. Nc3 {[%clk 0:02:59]} 5...
g6 {[%clk 0:02:59.3]} 6. Be3 {[%clk 0:02:56.6]} 6... Bg7 {[%clk 0:02:59.3]} 7.
f3 {[%clk 0:02:57.2]} 7... a6 {[%clk 0:02:56.6]} 8. Qd2 {[%clk 0:02:57.3]} 8...
h5 {[%clk 0:02:56.4]} 9. Be2 {[%clk 0:02:41.4]} 9... Nbd7 {[%clk 0:02:53.1]} 10.
O-O {[%clk 0:02:35]} 10... b5 {[%clk 0:02:36]} 11. a4 {[%clk 0:02:30.9]} 11...
b4 {[%clk 0:02:33.6]} 12. Na2 {[%clk 0:02:30.4]} 12... a5 {[%clk 0:02:28.8]} 13.
c3 {[%clk 0:02:29.9]} 13... bxc3 {[%clk 0:02:27.3]} 14. Nxc3 {[%clk 0:02:29]}
14... O-O {[%clk 0:02:25.3]} 15. Rac1 {[%clk 0:02:22.2]} 15... Nc5 {[%clk
0:02:22.4]} 16. Ndb5 {[%clk 0:02:14.1]} 16... Nb3 {[%clk 0:02:20.7]} 17. Qd3
{[%clk 0:02:10.8]} 17... Nxc1 {[%clk 0:02:20]} 18. Rxc1 {[%clk 0:02:11.7]} 18...
Ba6 {[%clk 0:02:15.4]} 19. Qd2 {[%clk 0:02:08.1]} 19... Rc8 {[%clk 0:02:12.1]}
20. Na7 {[%clk 0:01:41.3]} 20... Rxc3 {[%clk 0:01:32]} 21. Rxc3 {[%clk
0:01:27.9]} 21... Nxe4 {[%clk 0:01:15.7]} 22. fxe4 {[%clk 0:01:23.9]} 22... Bxe2
{[%clk 0:01:11]} 23. Rc8 {[%clk 0:01:07.3]} 23... Qd7 {[%clk 0:00:59]} 24. Rxf8+
{[%clk 0:01:06.5]} 24... Kxf8 {[%clk 0:00:57.3]} 25. Qxe2 {[%clk 0:01:07.4]}
25... Qxa4 {[%clk 0:00:57.2]} 26. Nb5 {[%clk 0:00:54.9]} 26... Qa1+ {[%clk
0:00:53.6]} 27. Kf2 {[%clk 0:00:52.6]} 27... Qxb2 {[%clk 0:00:52.2]} 28. Qxb2
{[%clk 0:00:47.2]} 28... Bxb2 {[%clk 0:00:51.8]} 29. Bd4 {[%clk 0:00:47.4]}
29... Bxd4+ {[%clk 0:00:43.1]} 30. Nxd4 {[%clk 0:00:48.3]} 30... Kg7 {[%clk
0:00:43.2]} 31. Ke3 {[%clk 0:00:40.5]} 31... Kf6 {[%clk 0:00:39.8]} 32. h4
{[%clk 0:00:33.1]} 32... a4 {[%clk 0:00:38.5]} 33. Nb5 {[%clk 0:00:32.5]} 33...
Ke5 {[%clk 0:00:35.6]} 34. Kf3 {[%clk 0:00:32.2]} 34... f5 {[%clk 0:00:33.5]}
35. exf5 {[%clk 0:00:30.6]} 35... gxf5 {[%clk 0:00:33.4]} 36. g3 {[%clk
0:00:30.5]} 36... Kf6 {[%clk 0:00:26.8]} 37. Ke3 {[%clk 0:00:28.4]} 37... Ke6
{[%clk 0:00:18.2]} 38. Kd3 {[%clk 0:00:27.5]} 38... Ke5 {[%clk 0:00:15.3]} 39.
Ke3 {[%clk 0:00:14.6]} 39... d5 {[%clk 0:00:15.4]} 40. Kd3 {[%clk 0:00:12.5]}
40... e6 {[%clk 0:00:14.9]} 41. Ke3 {[%clk 0:00:12]} 41... Kf6 {[%clk
0:00:13.8]} 42. Kd4 {[%clk 0:00:11.8]} 42... f4 {[%clk 0:00:09.6]} 43. gxf4
{[%clk 0:00:09.7]} 43... Kf5 {[%clk 0:00:09.6]} 0-1

[Event "*** SCC Grand Prix: Titled Tuesday Blitz"]
[Site "Chess.com"]
[Date "2020.09.08"]
[Round "7"]
[White "Sethu0025"]
[Black "Ba_clbaf_osed_ingo_3v21"]
[Result "1-0"]
[WhiteElo "2711"]
[BlackElo "2531"]
[TimeControl "180+1"]
[EndTime "11:19:15 PDT"]
[Termination "Sethu0025 won by resignation"]

1. c4 {[%clk 0:03:00.9]} 1... c5 {[%clk 0:02:58.2]} 2. Nf3 {[%clk 0:03:00.5]}
2... Nc6 {[%clk 0:02:54.5]} 3. d4 {[%clk 0:02:58.1]} 3... cxd4 {[%clk
0:02:55.4]} 4. Nxd4 {[%clk 0:02:58.9]} 4... Nf6 {[%clk 0:02:55.6]} 5. Nc3 {[%clk
0:02:59.6]} 5... e6 {[%clk 0:02:54.5]} 6. e4 {[%clk 0:02:59]} 6... Bb4 {[%clk
0:02:49.2]} 7. Nxc6 {[%clk 0:02:58.9]} 7... dxc6 {[%clk 0:02:47]} 8. Qxd8+
{[%clk 0:02:58.7]} 8... Kxd8 {[%clk 0:02:47.9]} 9. e5 {[%clk 0:02:59.4]} 9...
Ne4 {[%clk 0:02:47.2]} 10. a3 {[%clk 0:02:47.1]} 10... Bxc3+ {[%clk 0:02:06.9]}
11. bxc3 {[%clk 0:02:46.2]} 11... Nc5 {[%clk 0:01:37.3]} 12. Bf4 {[%clk
0:02:38.5]} 12... Kc7 {[%clk 0:01:34.4]} 13. h4 {[%clk 0:02:38.5]} 13... b6
{[%clk 0:01:34.4]} 14. h5 {[%clk 0:02:37.5]} 14... Ba6 {[%clk 0:01:32.4]} 15.
Rh3 {[%clk 0:02:28.1]} 15... Rad8 {[%clk 0:01:30.6]} 16. Be2 {[%clk 0:02:27.7]}
16... Rd7 {[%clk 0:01:27.9]} 17. Rg3 {[%clk 0:02:20.9]} 17... g6 {[%clk
0:01:27.4]} 18. Rh3 {[%clk 0:02:13.5]} 18... Rhd8 {[%clk 0:01:20.3]} 19. Bg5
{[%clk 0:02:09.3]} 19... Rg8 {[%clk 0:01:20.3]} 20. hxg6 {[%clk 0:02:03]} 20...
hxg6 {[%clk 0:01:20]} 21. a4 {[%clk 0:01:26.7]} 21... Nb3 {[%clk 0:00:50.9]} 22.
Ra3 {[%clk 0:01:20.9]} 22... Na5 {[%clk 0:00:50]} 23. Rh4 {[%clk 0:01:20.4]}
23... c5 {[%clk 0:00:44.7]} 24. Ra1 {[%clk 0:01:16.1]} 24... Bb7 {[%clk
0:00:41.6]} 25. f3 {[%clk 0:01:12.3]} 25... Bc6 {[%clk 0:00:40.8]} 26. Kf2
{[%clk 0:01:12]} 26... Nb3 {[%clk 0:00:39.2]} 27. Ra3 {[%clk 0:01:11.2]} 27...
Na5 {[%clk 0:00:39.4]} 28. Ke3 {[%clk 0:01:07.3]} 28... Bb7 {[%clk 0:00:39.2]}
29. Ra2 {[%clk 0:01:03.5]} 29... Ba6 {[%clk 0:00:38.8]} 30. Rd2 {[%clk
0:00:57.1]} 30... Bb7 {[%clk 0:00:33.2]} 31. Rh7 {[%clk 0:00:54.9]} 31... Rf8
{[%clk 0:00:18.7]} 32. Rxd7+ {[%clk 0:00:51]} 32... Kxd7 {[%clk 0:00:19.1]} 33.
Bh6 {[%clk 0:00:51.6]} 33... Re8 {[%clk 0:00:18.6]} 34. Rxf7+ {[%clk 0:00:48.6]}
34... Re7 {[%clk 0:00:19.5]} 35. Rf6 {[%clk 0:00:48.5]} 35... Bc6 {[%clk
0:00:17.6]} 36. Rxg6 {[%clk 0:00:46.8]} 36... Bxa4 {[%clk 0:00:18]} 37. g4
{[%clk 0:00:38.2]} 37... Bc2 {[%clk 0:00:17.6]} 38. Rg8 {[%clk 0:00:37.1]} 38...
Nb3 {[%clk 0:00:17.7]} 39. Ra8 {[%clk 0:00:35.9]} 39... Kc6 {[%clk 0:00:16.9]}
40. f4 {[%clk 0:00:35.1]} 40... Rd7 {[%clk 0:00:08.3]} 41. Bf3+ {[%clk
0:00:33.4]} 41... Kc7 {[%clk 0:00:08.7]} 42. Rxa7+ {[%clk 0:00:33.7]} 42... Kd8
{[%clk 0:00:09.6]} 43. Bg5+ {[%clk 0:00:32.5]} 43... Kc8 {[%clk 0:00:09]} 44.
Ra8+ {[%clk 0:00:30.8]} 44... Kc7 {[%clk 0:00:09]} 45. Ra7+ {[%clk 0:00:31]}
45... Kc8 {[%clk 0:00:09.2]} 46. Rxd7 {[%clk 0:00:31.1]} 46... Kxd7 {[%clk
0:00:10.1]} 47. Bf6 {[%clk 0:00:22.3]} 47... Ke8 {[%clk 0:00:09.7]} 48. Bc6+
{[%clk 0:00:19.3]} 48... Kf7 {[%clk 0:00:06.7]} 49. Bd8 {[%clk 0:00:19.6]} 1-0

[Event "*** SCC Grand Prix: Titled Tuesday Blitz"]
[Site "Chess.com"]
[Date "2020.09.08"]
[Round "7"]
[White "M1711"]
[Black "kosya4ok"]
[Result "0-1"]
[WhiteElo "2506"]
[BlackElo "2682"]
[TimeControl "180+1"]
[EndTime "11:19:15 PDT"]
[Termination "kosya4ok won on time"]

1. e4 {[%clk 0:03:00.9]} 1... e5 {[%clk 0:02:59.1]} 2. Bc4 {[%clk 0:03:00.4]}
2... Nf6 {[%clk 0:02:58.3]} 3. d3 {[%clk 0:03:00.5]} 3... Nc6 {[%clk 0:02:57.6]}
4. Nf3 {[%clk 0:03:00.1]} 4... Bc5 {[%clk 0:02:56.3]} 5. c3 {[%clk 0:02:58.7]}
5... d6 {[%clk 0:02:55.2]} 6. Nbd2 {[%clk 0:02:55.6]} 6... a6 {[%clk 0:02:48.7]}
7. Bb3 {[%clk 0:02:51.6]} 7... Ba7 {[%clk 0:02:45.6]} 8. h3 {[%clk 0:02:50.2]}
8... Ne7 {[%clk 0:02:40.2]} 9. Nf1 {[%clk 0:02:49.2]} 9... Ng6 {[%clk
0:02:36.8]} 10. g4 {[%clk 0:02:39.5]} 10... h5 {[%clk 0:02:23.2]} 11. g5 {[%clk
0:02:35.7]} 11... Nd7 {[%clk 0:02:22.6]} 12. Ng3 {[%clk 0:02:25]} 12... Nc5
{[%clk 0:02:10.7]} 13. Bc2 {[%clk 0:02:25.1]} 13... d5 {[%clk 0:01:34.2]} 14.
Qe2 {[%clk 0:02:18]} 14... dxe4 {[%clk 0:01:28.9]} 15. dxe4 {[%clk 0:02:17]}
15... Ne6 {[%clk 0:01:26.7]} 16. Nf5 {[%clk 0:01:43.3]} 16... Ngf4 {[%clk
0:01:17.8]} 17. Qf1 {[%clk 0:01:30.7]} 17... g6 {[%clk 0:01:06.5]} 18. Ne3
{[%clk 0:01:00.7]} 18... Nxg5 {[%clk 0:00:21.6]} 19. Nxg5 {[%clk 0:00:49.3]}
19... Qxg5 {[%clk 0:00:22.5]} 20. Nd5 {[%clk 0:00:49.5]} 20... O-O {[%clk
0:00:17.1]} 21. Rg1 {[%clk 0:00:44.5]} 21... Qh4 {[%clk 0:00:16.4]} 22. Bxf4
{[%clk 0:00:29.7]} 22... exf4 {[%clk 0:00:17.3]} 23. O-O-O {[%clk 0:00:22.8]}
23... Bxh3 {[%clk 0:00:14.6]} 24. Qd3 {[%clk 0:00:18.5]} 24... Bxf2 {[%clk
0:00:13.8]} 25. Rh1 {[%clk 0:00:12.1]} 25... Bg3 {[%clk 0:00:12.5]} 26. e5
{[%clk 0:00:10.3]} 26... Kh8 {[%clk 0:00:07.2]} 27. Nf6 {[%clk 0:00:07.6]} 27...
Rac8 {[%clk 0:00:03.4]} 28. Kb1 {[%clk 0:00:05.5]} 28... Kg7 {[%clk 0:00:03.4]}
29. Qd4 {[%clk 0:00:04.3]} 29... c5 {[%clk 0:00:03.7]} 30. Qe4 {[%clk
0:00:03.7]} 30... Rc6 {[%clk 0:00:04.1]} 31. Qf3 {[%clk 0:00:02.5]} 31... Rxf6
{[%clk 0:00:03.9]} 32. exf6+ {[%clk 0:00:02.6]} 32... Kxf6 {[%clk 0:00:04.8]}
33. Rdf1 {[%clk 0:00:02.5]} 33... Kg7 {[%clk 0:00:05.4]} 34. Qxb7 {[%clk
0:00:02.3]} 34... Qg4 {[%clk 0:00:05.7]} 35. Rfg1 {[%clk 0:00:02.7]} 35... f3
{[%clk 0:00:05.7]} 36. Qc7 {[%clk 0:00:01.4]} 36... Bg2 {[%clk 0:00:05.8]} 37.
Rxg2 {[%clk 0:00:01.5]} 37... Bxc7 {[%clk 0:00:05.3]} 38. Rxg4 {[%clk
0:00:01.7]} 38... hxg4 {[%clk 0:00:06.2]} 39. Rg1 {[%clk 0:00:02.2]} 39... Kf6
{[%clk 0:00:07]} 40. Rxg4 {[%clk 0:00:02]} 40... f2 {[%clk 0:00:07.9]} 41. Bd3
{[%clk 0:00:02.3]} 41... Re8 {[%clk 0:00:08.5]} 42. Kc2 {[%clk 0:00:01.7]} 42...
Re1 {[%clk 0:00:09.4]} 43. Rc4 {[%clk 0:00:01.5]} 43... Bd6 {[%clk 0:00:08.5]}
44. Ra4 {[%clk 0:00:01.4]} 44... Re3 {[%clk 0:00:07.2]} 45. Bc4 {[%clk
0:00:01.4]} 45... Re4 {[%clk 0:00:07.1]} 0-1

[Event "*** SCC Grand Prix: Titled Tuesday Blitz"]
[Site "Chess.com"]
[Date "2020.09.08"]
[Round "7"]
[White "Gabrielian_Artur"]
[Black "Yaacovn"]
[Result "1-0"]
[WhiteElo "2719"]
[BlackElo "2891"]
[TimeControl "180+1"]
[EndTime "11:19:17 PDT"]
[Termination "Gabrielian_Artur won on time"]

1. e4 {[%clk 0:03:00.9]} 1... c6 {[%clk 0:03:00]} 2. d4 {[%clk 0:03:00.6]} 2...
d5 {[%clk 0:03:00.9]} 3. Nd2 {[%clk 0:03:00.9]} 3... dxe4 {[%clk 0:03:01.4]} 4.
Nxe4 {[%clk 0:03:01.5]} 4... Nf6 {[%clk 0:03:02.3]} 5. Nxf6+ {[%clk 0:03:01.8]}
5... gxf6 {[%clk 0:03:03.2]} 6. c3 {[%clk 0:02:56.7]} 6... Qd5 {[%clk
0:03:02.8]} 7. Nf3 {[%clk 0:02:51.7]} 7... Bg4 {[%clk 0:02:52.4]} 8. Be2 {[%clk
0:02:51.2]} 8... Nd7 {[%clk 0:02:52.6]} 9. h3 {[%clk 0:02:50.3]} 9... Bh5 {[%clk
0:02:45.2]} 10. Qb3 {[%clk 0:02:46.5]} 10... O-O-O {[%clk 0:02:35.3]} 11. Qxd5
{[%clk 0:02:46]} 11... cxd5 {[%clk 0:02:35.2]} 12. Be3 {[%clk 0:02:45.6]} 12...
e6 {[%clk 0:02:35.4]} 13. O-O-O {[%clk 0:02:34.1]} 13... Nb6 {[%clk 0:02:33.6]}
14. Rhe1 {[%clk 0:02:32.6]} 14... Rg8 {[%clk 0:02:33.1]} 15. g4 {[%clk
0:02:31.1]} 15... Bg6 {[%clk 0:02:32.4]} 16. Nd2 {[%clk 0:02:26]} 16... Bd6
{[%clk 0:02:28.2]} 17. Nb3 {[%clk 0:02:18.3]} 17... Kb8 {[%clk 0:02:23.2]} 18.
Nc5 {[%clk 0:02:13.8]} 18... Nc4 {[%clk 0:02:10.1]} 19. Nd3 {[%clk 0:01:29.9]}
19... Rc8 {[%clk 0:01:56.3]} 20. Bf4 {[%clk 0:01:22.6]} 20... e5 {[%clk
0:01:52.8]} 21. dxe5 {[%clk 0:01:22.7]} 21... fxe5 {[%clk 0:01:52.9]} 22. Bg3
{[%clk 0:01:23.1]} 22... f6 {[%clk 0:01:46.9]} 23. Bf1 {[%clk 0:01:23]} 23...
Rgd8 {[%clk 0:01:42.6]} 24. h4 {[%clk 0:01:21.4]} 24... h5 {[%clk 0:01:36.1]}
25. g5 {[%clk 0:01:14.6]} 25... f5 {[%clk 0:01:36.5]} 26. Nxe5 {[%clk
0:01:09.3]} 26... Bxe5 {[%clk 0:00:53.8]} 27. Bxe5+ {[%clk 0:01:09]} 27... Ka8
{[%clk 0:00:54.4]} 28. Bg2 {[%clk 0:01:00.1]} 28... Bf7 {[%clk 0:00:47.3]} 29.
Bf6 {[%clk 0:00:56.4]} 29... Rd7 {[%clk 0:00:44.4]} 30. b3 {[%clk 0:00:56.2]}
30... Nb6 {[%clk 0:00:27.3]} 31. Kb2 {[%clk 0:00:56.3]} 31... a6 {[%clk
0:00:25.6]} 32. a4 {[%clk 0:00:55.9]} 32... Rg8 {[%clk 0:00:22.3]} 33. Bd4
{[%clk 0:00:46]} 33... Nc8 {[%clk 0:00:22.1]} 34. Bc5 {[%clk 0:00:42.6]} 34...
b6 {[%clk 0:00:20.3]} 35. Be3 {[%clk 0:00:40.8]} 35... Kb8 {[%clk 0:00:12.1]}
36. c4 {[%clk 0:00:37.1]} 36... Rgd8 {[%clk 0:00:06.8]} 37. Bf4+ {[%clk
0:00:37.4]} 37... Ka7 {[%clk 0:00:06.5]} 38. cxd5 {[%clk 0:00:35.9]} 38... Bxd5
{[%clk 0:00:07.4]} 39. Bxd5 {[%clk 0:00:35.5]} 39... Rxd5 {[%clk 0:00:08]} 40.
Rxd5 {[%clk 0:00:35.5]} 40... Rxd5 {[%clk 0:00:08.9]} 41. Re8 {[%clk 0:00:30.9]}
41... Kb7 {[%clk 0:00:08.5]} 42. g6 {[%clk 0:00:31]} 42... Rd7 {[%clk
0:00:08.7]} 43. Be5 {[%clk 0:00:27.3]} 43... Re7 {[%clk 0:00:05.7]} 44. Rxe7+
{[%clk 0:00:18.3]} 44... Nxe7 {[%clk 0:00:06.6]} 45. g7 {[%clk 0:00:18.8]} 45...
Kc6 {[%clk 0:00:06.8]} 46. Bf6 {[%clk 0:00:18]} 46... Ng8 {[%clk 0:00:06.6]} 47.
Bg5 {[%clk 0:00:18.3]} 47... Kd5 {[%clk 0:00:07]} 48. Kc3 {[%clk 0:00:17.8]} 1-0

[Event "*** SCC Grand Prix: Titled Tuesday Blitz"]
[Site "Chess.com"]
[Date "2020.09.08"]
[Round "7"]
[White "Iball95"]
[Black "BogdanDeac"]
[Result "1-0"]
[WhiteElo "2734"]
[BlackElo "2908"]
[TimeControl "180+1"]
[EndTime "11:19:18 PDT"]
[Termination "Iball95 won on time"]

1. d4 {[%clk 0:03:00]} 1... g6 {[%clk 0:02:59]} 2. e4 {[%clk 0:02:58.7]} 2...
Bg7 {[%clk 0:02:59.1]} 3. Nf3 {[%clk 0:02:58.4]} 3... d6 {[%clk 0:02:57.7]} 4.
Bc4 {[%clk 0:02:58.6]} 4... Nf6 {[%clk 0:02:57.6]} 5. Qe2 {[%clk 0:02:59]} 5...
O-O {[%clk 0:02:45.4]} 6. h3 {[%clk 0:02:54.4]} 6... c6 {[%clk 0:02:43.8]} 7.
Nbd2 {[%clk 0:02:54.3]} 7... d5 {[%clk 0:02:43.6]} 8. Bd3 {[%clk 0:02:53.2]}
8... a5 {[%clk 0:02:34.6]} 9. O-O {[%clk 0:02:49.5]} 9... Na6 {[%clk 0:02:34.1]}
10. c3 {[%clk 0:02:47.8]} 10... Nh5 {[%clk 0:02:33.6]} 11. Qe3 {[%clk
0:02:35.3]} 11... dxe4 {[%clk 0:02:25.8]} 12. Nxe4 {[%clk 0:02:36.2]} 12... Nc7
{[%clk 0:02:25.6]} 13. Ne5 {[%clk 0:02:28.2]} 13... Nd5 {[%clk 0:02:15.5]} 14.
Qf3 {[%clk 0:02:28.3]} 14... Qc7 {[%clk 0:02:15.6]} 15. Re1 {[%clk 0:02:22.9]}
15... Bf5 {[%clk 0:02:11.6]} 16. g4 {[%clk 0:02:18.2]} 16... Bxe4 {[%clk
0:02:09.1]} 17. Bxe4 {[%clk 0:02:19.1]} 17... Nhf6 {[%clk 0:02:08.9]} 18. Bc2
{[%clk 0:02:18.1]} 18... e6 {[%clk 0:02:04.8]} 19. a4 {[%clk 0:02:16.7]} 19...
Rad8 {[%clk 0:01:58]} 20. h4 {[%clk 0:02:14.6]} 20... c5 {[%clk 0:01:56.9]} 21.
dxc5 {[%clk 0:02:10.4]} 21... Qxc5 {[%clk 0:01:56.3]} 22. h5 {[%clk 0:02:06]}
22... Qc7 {[%clk 0:01:51.6]} 23. h6 {[%clk 0:01:54.2]} 23... Bh8 {[%clk
0:01:51.2]} 24. Bg5 {[%clk 0:01:54.5]} 24... Nd7 {[%clk 0:01:28.9]} 25. Nxd7
{[%clk 0:01:14.8]} 25... Rxd7 {[%clk 0:01:27.8]} 26. Rad1 {[%clk 0:01:14.5]}
26... Qb6 {[%clk 0:00:45.1]} 27. Be4 {[%clk 0:00:50.3]} 27... Qxb2 {[%clk
0:00:36.8]} 28. Bxd5 {[%clk 0:00:50]} 28... exd5 {[%clk 0:00:33.8]} 29. Bf6
{[%clk 0:00:49.8]} 29... Qb6 {[%clk 0:00:32.4]} 30. Bxh8 {[%clk 0:00:45.8]}
30... Kxh8 {[%clk 0:00:33.3]} 31. Rxd5 {[%clk 0:00:46]} 31... Qc6 {[%clk
0:00:25.6]} 32. c4 {[%clk 0:00:40.4]} 32... Kg8 {[%clk 0:00:25.2]} 33. Qf4
{[%clk 0:00:32.6]} 33... f6 {[%clk 0:00:16.8]} 34. Qd4 {[%clk 0:00:26.7]} 34...
Rdf7 {[%clk 0:00:15]} 35. Rd6 {[%clk 0:00:25]} 35... Qc7 {[%clk 0:00:13.9]} 36.
c5 {[%clk 0:00:24]} 36... Re7 {[%clk 0:00:12.5]} 37. Rde6 {[%clk 0:00:22.3]}
37... Ref7 {[%clk 0:00:11.9]} 38. Qd5 {[%clk 0:00:21.4]} 38... Qd7 {[%clk
0:00:11.8]} 39. Qc4 {[%clk 0:00:18.5]} 39... Kh8 {[%clk 0:00:10.5]} 40. Rd6
{[%clk 0:00:18]} 40... Qc8 {[%clk 0:00:10.6]} 41. Ree6 {[%clk 0:00:17.7]} 41...
g5 {[%clk 0:00:06.7]} 42. Qd4 {[%clk 0:00:17.4]} 42... Kg8 {[%clk 0:00:06.9]}
43. Qd5 {[%clk 0:00:17.1]} 43... Kh8 {[%clk 0:00:06.8]} 44. Kg2 {[%clk
0:00:17.3]} 44... Qc7 {[%clk 0:00:04.3]} 45. Qd4 {[%clk 0:00:17.1]} 45... Kg8
{[%clk 0:00:04.3]} 46. f3 {[%clk 0:00:17.5]} 46... Qc8 {[%clk 0:00:02.3]} 47.
Qd5 {[%clk 0:00:15.2]} 47... Kh8 {[%clk 0:00:01.3]} 48. Rb6 {[%clk 0:00:14.6]}
1-0

[Event "*** SCC Grand Prix: Titled Tuesday Blitz"]
[Site "Chess.com"]
[Date "2020.09.08"]
[Round "7"]
[White "RobPeresian"]
[Black "mr_gustavo"]
[Result "1-0"]
[WhiteElo "2365"]
[BlackElo "2236"]
[TimeControl "180+1"]
[EndTime "11:19:18 PDT"]
[Termination "RobPeresian won by checkmate"]

1. Nf3 {[%clk 0:02:57.3]} 1... Nf6 {[%clk 0:02:59.7]} 2. c4 {[%clk 0:02:56.1]}
2... g6 {[%clk 0:02:59.6]} 3. Nc3 {[%clk 0:02:54.9]} 3... Bg7 {[%clk 0:02:59.8]}
4. e4 {[%clk 0:02:55]} 4... d6 {[%clk 0:03:00]} 5. d4 {[%clk 0:02:55.2]} 5...
O-O {[%clk 0:03:00]} 6. h3 {[%clk 0:02:54.3]} 6... e5 {[%clk 0:02:58.4]} 7. d5
{[%clk 0:02:54.1]} 7... c6 {[%clk 0:02:56.4]} 8. Bg5 {[%clk 0:02:53.7]} 8...
cxd5 {[%clk 0:02:55.9]} 9. cxd5 {[%clk 0:02:53.4]} 9... a6 {[%clk 0:02:53.7]}
10. Be2 {[%clk 0:02:49.3]} 10... b5 {[%clk 0:02:53.4]} 11. a3 {[%clk 0:02:49.7]}
11... Nbd7 {[%clk 0:02:53]} 12. g4 {[%clk 0:02:45.5]} 12... Qb6 {[%clk
0:02:49.3]} 13. Nd2 {[%clk 0:02:42.8]} 13... Nc5 {[%clk 0:02:42]} 14. h4 {[%clk
0:02:34.1]} 14... Re8 {[%clk 0:01:13.8]} 15. Be3 {[%clk 0:02:26.4]} 15... Qb7
{[%clk 0:01:11]} 16. b4 {[%clk 0:02:23]} 16... Ncd7 {[%clk 0:01:08.5]} 17. h5
{[%clk 0:02:21.4]} 17... Nf8 {[%clk 0:01:01.1]} 18. hxg6 {[%clk 0:02:14.1]}
18... Nxg6 {[%clk 0:00:52.6]} 19. g5 {[%clk 0:02:11.3]} 19... Nd7 {[%clk
0:00:51.3]} 20. Bg4 {[%clk 0:02:09.6]} 20... Nf4 {[%clk 0:00:48.8]} 21. Bf5
{[%clk 0:02:08]} 21... Nf8 {[%clk 0:00:46.4]} 22. Qg4 {[%clk 0:02:00.2]} 22...
Qc7 {[%clk 0:00:35.5]} 23. Ne2 {[%clk 0:01:52.1]} 23... Nd3+ {[%clk 0:00:30.8]}
24. Kf1 {[%clk 0:01:52]} 24... Qc2 {[%clk 0:00:18.5]} 25. Ng3 {[%clk 0:01:35.6]}
25... Nf4 {[%clk 0:00:08.8]} 26. Nh5 {[%clk 0:01:18.3]} 26... Qd3+ {[%clk
0:00:08.2]} 27. Kg1 {[%clk 0:01:17.1]} 27... Nxh5 {[%clk 0:00:05.6]} 28. Rxh5
{[%clk 0:01:11.3]} 28... Qc3 {[%clk 0:00:03]} 29. Rf1 {[%clk 0:00:49.8]} 29...
Qc2 {[%clk 0:00:03]} 30. Kg2 {[%clk 0:00:49.3]} 30... Qd3 {[%clk 0:00:02.2]} 31.
Rfh1 {[%clk 0:00:48.9]} 31... Qc2 {[%clk 0:00:02.2]} 32. Qh3 {[%clk 0:00:43.1]}
32... Qa2 {[%clk 0:00:02.1]} 33. Rxh7 {[%clk 0:00:38.2]} 33... Nxh7 {[%clk
0:00:01.6]} 34. Qxh7+ {[%clk 0:00:27.5]} 34... Kf8 {[%clk 0:00:02.5]} 35. Bxc8
{[%clk 0:00:17]} 35... Raxc8 {[%clk 0:00:03.4]} 36. g6 {[%clk 0:00:15.8]} 36...
Rc2 {[%clk 0:00:03.2]} 37. gxf7 {[%clk 0:00:14.2]} 37... Rec8 {[%clk 0:00:03.3]}
38. Qg8+ {[%clk 0:00:11.6]} 38... Ke7 {[%clk 0:00:03.1]} 39. Qxg7 {[%clk
0:00:12.2]} 39... Rf8 {[%clk 0:00:02.4]} 40. Bg5+ {[%clk 0:00:11.6]} 40... Kd7
{[%clk 0:00:02.8]} 41. Qxf8 {[%clk 0:00:11.6]} 41... Rxd2 {[%clk 0:00:03.7]} 42.
Qe8+ {[%clk 0:00:10.4]} 42... Kc7 {[%clk 0:00:04]} 43. Bxd2 {[%clk 0:00:08.9]}
43... Qxd2 {[%clk 0:00:03.4]} 44. Qe7+ {[%clk 0:00:07.4]} 44... Kb6 {[%clk
0:00:03.7]} 45. f8=Q {[%clk 0:00:07.7]} 45... Qd3 {[%clk 0:00:02.1]} 46. Qxd6+
{[%clk 0:00:07]} 46... Kb7 {[%clk 0:00:01.9]} 47. Rh7# {[%clk 0:00:06.6]} 1-0